bitfinex-derivatives/quotes_ETHF0:USTF0_20241024
["timestamp","ask_amount","ask_price","bid_price","bid_amount"]
[1729738034231,5.00493753,2549.9,2549.8,0.3974]
[1729738034533,8.92653753,2549.9,2549.8,0.3974]
[1729738035429,5.00493753,2549.9,2549.8,0.7507]
[1729738035635,5.00493753,2549.9,2549.8,1.88257894]
[1729738035936,3.87305859,2549.9,2549.8,1.88257894]
[1729738036127,5.00493753,2549.9,2549.8,1.88257894]
[1729738036329,3.56106,2550.1,2549.8,0.7507]
[1729738036330,4.54727571,2550.0,2549.8,0.7507]
[1729738036634,3.2078,2550.1,2549.9,0.35329]
[1729738036836,4.48162479,2550.0,2549.9,0.35329]
[1729738037837,4.48162479,2550.0,2549.8,0.3974]
[1729738038038,4.48162479,2550.0,2549.8,0.75069]
[1729738038231,4.48162479,2550.0,2549.8,0.3974]
[1729738038534,7.2868198,2550.0,2549.6,0.35332]
[1729738038730,6.9335398,2550.0,2549.5,3.2078]
[1729738039134,6.9335398,2550.0,2549.7,0.3533]
[1729738039329,6.9335398,2550.0,2549.8,0.35329]
[1729738039528,4.48162479,2550.0,2549.8,0.35329]
[1729738040323,4.48162479,2550.0,2549.5,3.2078]
[1729738040528,4.48162479,2550.0,2549.9,0.35329]
[1729738041643,4.48162479,2550.0,2549.5,5.65971501]
[1729738041937,4.48162479,2550.0,2549.9,0.35329]
[1729738045433,4.48162479,2550.0,2549.9,0.76909]
[1729738051341,0.4292,2550.2,2549.9,0.4158]
[1729738051643,0.4292,2550.2,2550.1,0.35326]
[1729738051839,3.2078,2550.4,2549.9,0.4158]
[1729738052052,3.6165,2550.4,2550.3,0.35323]
[1729738052341,7.69590088,2550.4,2550.3,0.35323]
[1729738053233,6.38291501,2552.4,2550.3,4.27403]
[1729738053234,3.2078,2550.9,2550.3,4.27403]
[1729738053442,3.2078,2550.9,2550.5,2.45191501]
[1729738053634,3.2078,2550.9,2550.8,0.35316]
[1729738054036,7.46015089,2550.9,2550.8,0.35316]
[1729738054836,3.2078,2550.9,2550.8,0.35316]
[1729738055044,3.2078,2551.2,2550.5,2.45191501]
[1729738055236,3.2078,2551.2,2551.0,0.35312]
[1729738055433,7.71158625,2551.2,2551.1,0.4147]
[1729738056148,7.71158625,2551.2,2551.1,0.76782]
[1729738056949,3.2078,2551.2,2551.1,0.76782]
[1729738057546,3.2078,2551.5,2551.4,0.35307]
[1729738057846,3.2078,2551.5,2551.1,0.4147]
[1729738058148,7.54089922,2551.5,2551.1,0.4147]
[1729738058445,0.35311,2551.2,2551.1,0.4147]
[1729738060443,0.35313,2551.1,2550.8,3.56095]
[1729738060751,0.35313,2551.1,2550.7,2.45191501]
[1729738060752,4.69602805,2551.0,2550.7,0.35317]
[1729738061738,45.49602805,2551.0,2550.7,0.35317]
[1729738061945,0.35315,2550.9,2550.6,1.18798]
[1729738062240,0.35315,2550.9,2550.6,0.8348]
[1729738062452,0.35315,2550.9,2550.6,1.18798]
[1729738062846,0.35315,2550.9,2550.7,0.35317]
[1729738063748,4.34288805,2551.0,2550.7,0.35317]
[1729738063948,4.69602805,2551.0,2550.7,0.35317]
[1729738064447,4.34288805,2551.0,2550.6,0.8348]
[1729738064750,4.34288805,2551.0,2550.9,0.35315]
[1729738064953,41.15309,2551.4,2551.1,0.35311]
[1729738065148,0.06333407,2551.3,2551.1,0.35311]
[1729738065545,4.09756494,2551.2,2551.1,0.35311]
[1729738066853,4.16089836,2551.2,2551.1,0.35311]
[1729738068251,4.09756494,2551.2,2551.1,0.35311]
[1729738068652,0.4371,2551.4,2551.2,0.3531]
[1729738068653,0.79018,2551.4,2551.2,0.3531]
[1729738068958,0.79018,2551.4,2550.9,2.45191501]
[1729738068959,4.72309547,2551.3,2551.1,0.35311]
[1729738069155,4.72309547,2551.3,2551.2,0.43]
[1729738069156,4.65976593,2551.3,2551.2,0.43]
[1729738069448,4.723097,2551.3,2551.2,0.43]
[1729738069648,8.290007,2551.3,2550.7,3.2078]
[1729738069853,0.35314,2551.0,2550.8,0.78315]
[1729738070048,0.35314,2551.0,2550.8,0.43]
[1729738070248,4.5399969,2550.9,2550.8,0.43]
[1729738070549,0.78135,2550.9,2550.8,0.43]
[1729738070756,0.4282,2550.9,2550.8,0.78316]
[1729738071448,0.4282,2550.9,2550.8,0.43]
[1729738072057,0.78135,2550.9,2550.8,0.43]
[1729738072951,0.78135,2550.9,2550.8,0.78316]
[1729738074052,0.78135,2550.9,2550.8,0.43]
[1729738075056,5.08223424,2550.9,2550.8,0.43]
[1729738076256,0.35318,2550.7,2550.5,0.77009]
[1729738076444,4.72908424,2550.9,2550.5,0.4146]
[1729738076650,4.44828099,2550.6,2550.5,0.7678]
[1729738076850,0.35319,2550.6,2550.5,0.7678]
[1729738077354,4.44828099,2550.6,2550.5,0.7678]
[1729738078054,4.09509099,2550.6,2550.5,0.7678]
[1729738078457,4.50703011,2550.7,2550.5,0.7678]
[1729738078658,0.35318,2550.7,2550.5,0.7678]
[1729738079054,4.19918723,2550.6,2550.5,0.7678]
[1729738079260,4.19918723,2550.6,2550.4,3.2078]
[1729738079455,0.7634,2550.5,2550.4,3.2078]
[1729738079951,5.23864258,2550.5,2550.4,3.2078]
[1729738080358,4.88544258,2550.5,2550.4,3.2078]
[1729738081458,4.88544258,2550.5,2550.4,3.56102]
[1729738081758,4.88544258,2550.5,2550.4,3.16812]
[1729738082058,4.88544258,2550.5,2550.2,3.24224501]
[1729738082250,0.35323,2550.3,2550.2,0.4371]
[1729738082455,3.9208,2550.4,2549.8,5.65971501]
[1729738082652,0.35325,2550.2,2549.9,0.35328]
[1729738082857,8.27704687,2550.3,2549.9,0.35328]
[1729738083063,5.04980687,2550.1,2549.9,0.35328]
[1729738083263,0.35328,2550.0,2549.8,3.99079]
[1729738083559,4.62522687,2550.0,2549.8,3.99079]
[1729738085267,4.62522687,2550.0,2549.8,0.78299]
[1729738085962,0.35329,2549.9,2549.8,0.4297]
[1729738086161,0.35329,2549.9,2548.9,4.36395733]
[1729738086162,7.1294,2549.9,2549.2,3.2078]
[1729738086359,0.35335,2549.5,2549.3,0.77986]
[1729738086552,0.4071,2549.4,2549.3,0.77986]
[1729738087157,0.35332,2549.7,2549.3,0.4265]
[1729738087459,5.23809715,2549.7,2549.3,0.4265]
[1729738087659,5.23809715,2549.7,2549.4,0.35335]
[1729738087863,0.76082,2549.7,2549.4,0.35335]
[1729738088067,4.35582532,2549.6,2549.3,0.4265]
[1729738088260,4.35582532,2549.6,2549.5,0.35334]
[1729738088562,4.35582532,2549.6,2549.3,0.4265]
[1729738088759,4.35582532,2549.6,2549.4,0.35335]
[1729738089156,4.70915532,2549.6,2549.4,0.35335]
[1729738090466,4.70915532,2549.6,2549.3,0.77986]
[1729738090763,0.35335,2549.5,2549.3,0.4265]
[1729738091152,4.35582532,2549.6,2549.3,0.77986]
[1729738091153,4.70915532,2549.6,2549.3,0.77986]
[1729738094563,4.35582532,2549.6,2549.3,0.77986]
[1729738094866,0.35335,2549.5,2549.3,0.4265]
[1729738095068,4.35582532,2549.6,2549.3,0.4265]
[1729738095363,4.35582532,2549.6,2549.4,0.35335]
[1729738096062,4.70915532,2549.6,2549.4,0.35335]
[1729738096464,4.70915532,2549.6,2549.3,0.77986]
[1729738097272,4.35582532,2549.6,2549.5,0.35334]
[1729738097670,4.35582532,2549.6,2549.4,0.35335]
[1729738097869,4.35582532,2549.6,2549.3,2.87841501]
[1729738098166,0.35329,2549.9,2549.6,0.35331]
[1729738098476,4.84057222,2549.9,2549.3,6.08621501]
[1729738098676,4.84057222,2549.9,2549.7,0.35331]
[1729738099371,4.84057222,2549.9,2549.6,0.35332]
[1729738099567,4.84057222,2549.9,2549.3,6.08621501]
[1729738099763,4.84057222,2549.9,2549.7,0.35331]
[1729738100271,4.84057222,2549.9,2549.8,0.4396]
[1729738105376,0.3998,2550.0,2549.8,0.4396]
[1729738105765,0.3998,2550.0,2549.8,0.79289]
[1729738106175,0.3998,2550.0,2549.8,0.7929]
[1729738106176,0.75308,2550.0,2549.8,0.7929]
[1729738106572,0.3998,2550.0,2549.8,0.7929]
[1729738106774,0.3998,2550.0,2549.8,0.4396]
[1729738107078,0.35329,2549.9,2549.8,0.4396]
[1729738107277,0.3998,2550.0,2549.8,0.79289]
[1729738107464,0.75307,2550.0,2549.8,0.79289]
[1729738108469,40.8,2550.2,2549.8,0.4396]
[1729738108677,41.58975,2550.2,2549.9,0.35327]
[1729738108876,4.10773312,2550.1,2549.9,0.35327]
[1729738109077,0.4365,2550.2,2549.9,0.35327]
[1729738109579,0.35326,2550.1,2549.9,0.35327]
[1729738110579,0.78975,2550.2,2549.9,0.35327]
[1729738110878,0.4365,2550.2,2549.9,0.35327]
[1729738111077,0.35326,2550.1,2549.9,0.35327]
[1729738111582,0.78975,2550.2,2549.9,0.35329]
[1729738112080,0.78975,2550.2,2549.8,0.4396]
[1729738112081,0.35329,2549.9,2549.8,0.4396]
[1729738112381,4.48439063,2549.9,2549.8,0.4396]
[1729738114776,0.35334,2549.6,2549.5,0.35334]
[1729738114982,0.35334,2549.6,2549.5,0.78874]
[1729738117179,0.35334,2549.6,2549.5,0.4354]
[1729738118979,0.35334,2549.5,2549.4,3.2078]
[1729738119880,0.35334,2549.5,2549.4,3.56115]
[1729738120080,0.35334,2549.5,2549.4,3.2078]
[1729738120877,4.14412394,2549.6,2549.5,0.35334]
[1729738121077,0.35332,2549.7,2549.5,0.35334]
[1729738121285,0.78231,2549.8,2549.5,0.77594]
[1729738121586,4.2934779,2549.7,2549.6,0.35333]
[1729738121790,4.2934779,2549.7,2549.6,0.76183]
[1729738126384,5.42522808,2549.7,2549.6,0.76183]
[1729738126885,4.2934779,2549.7,2549.6,1.89358018]
[1729738127086,0.35329,2549.9,2549.7,0.35331]
[1729738127087,1.48504018,2549.9,2549.7,0.35331]
[1729738127305,1.48504018,2549.9,2549.8,0.4244]
[1729738127791,1.13175018,2549.9,2549.8,0.4244]
[1729738128090,1.48504018,2549.9,2549.8,0.4244]
[1729738133290,1.13175018,2549.9,2549.8,0.4244]
[1729738133690,1.48504018,2549.9,2549.8,0.4244]
[1729738134889,1.13175018,2549.9,2549.8,0.4244]
[1729738135093,1.13175018,2549.9,2549.8,0.7777]
[1729738135290,3.2078,2550.1,2549.8,1.55615018]
[1729738135491,4.33955018,2550.1,2549.9,0.35327]
[1729738135695,4.33955018,2550.1,2549.9,0.4368]
[1729738135696,1.48502018,2550.0,2549.9,0.4368]
[1729738136499,1.13175018,2550.0,2549.9,0.79009]
[1729738136994,1.13175018,2550.0,2549.9,0.4368]
[1729738137196,1.13175018,2550.0,2549.9,0.79009]
[1729738137699,1.13175018,2550.0,2549.8,0.4244]
[1729738137903,1.48504018,2549.9,2549.8,0.4244]
[1729738138395,1.13175018,2549.9,2549.8,0.7777]
[1729738138897,1.48504018,2549.9,2549.8,0.4244]
[1729738140495,1.13175018,2549.9,2549.8,0.7777]
[1729738140696,0.35329,2549.9,2549.8,0.7777]
[1729738142806,0.4115,2550.2,2550.1,0.35326]
[1729738143096,1.89649018,2550.2,2550.1,0.35326]
[1729738143301,1.54325018,2550.2,2550.1,0.35326]
[1729738143893,1.54325018,2550.2,2550.1,0.77816]
[1729738146703,1.13175018,2550.3,2550.2,0.35324]
[1729738146893,1.13175018,2550.3,2550.2,0.75004]
[1729738147201,5.40125598,2550.3,2550.2,0.75004]
[1729738149903,1.13175018,2550.3,2550.2,0.75004]
[1729738155901,1.13175018,2550.4,2550.3,0.35322]
[1729738156205,41.93175018,2550.5,2550.4,0.35322]
[1729738156409,42.28495018,2550.5,2550.4,0.35322]
[1729738156603,46.6427651,2550.5,2550.4,0.35322]
[1729738157010,46.2895651,2550.5,2550.2,1.52855018]
[1729738157307,1.13175018,2550.4,2550.3,0.35322]
[1729738158300,40.8,2550.5,2550.3,1.13175018]
[1729738158508,4.77515018,2550.6,2550.5,0.3532]
[1729738158703,4.77515018,2550.6,2550.5,1.48495018]
[1729738159010,4.77515018,2550.6,2550.5,1.92025018]
[1729738159011,3.2078,2550.6,2550.5,1.92025018]
[1729738159401,0.4301,2550.8,2550.5,5.48785018]
[1729738159710,1.13175018,2550.9,2550.7,1.13175018]
[1729738160008,1.13175018,2550.9,2550.8,1.91381018]
[1729738162803,1.19509548,2550.9,2550.8,1.91381018]
[1729738162998,1.13175018,2550.9,2550.8,1.91381018]
[1729738163201,3.2078,2551.3,2550.8,5.48065018]
[1729738163501,1.13175018,2551.1,2551.0,1.48488018]
[1729738163702,1.13175018,2551.1,2551.0,1.91708018]
[1729738163703,41.93175018,2551.1,2551.0,1.91708018]
[1729738164410,1.13175018,2551.1,2551.0,1.91708018]
[1729738165004,1.13175018,2551.1,2551.0,0.78533]
[1729738165200,1.13175018,2551.1,2551.0,0.4322]
[1729738166014,1.13175018,2551.1,2551.0,0.78533]
[1729738167207,1.13175018,2551.1,2551.0,0.4322]
[1729738168310,9.13103131,2551.1,2550.6,2.30475018]
[1729738168619,1.13175018,2550.8,2550.7,0.35317]
[1729738169125,1.56455018,2550.8,2550.7,0.35317]
[1729738169612,1.56455018,2550.8,2550.6,1.54565018]
[1729738169810,1.48492018,2550.7,2550.6,0.4139]
[1729738170007,1.13175018,2550.7,2550.6,0.76709]
[1729738170607,1.48492018,2550.7,2550.6,0.35319]
[1729738170806,1.48492018,2550.7,2550.4,1.96145018]
[1729738170807,1.48492018,2550.7,2550.5,0.35319]
[1729738171011,1.13175018,2550.6,2550.3,0.4379]
[1729738171214,4.21397423,2550.7,2550.4,0.35322]
[1729738171418,5.34572441,2550.5,2550.4,1.48497018]
[1729738171621,1.13175018,2550.5,2550.4,1.48497018]
[1729738172609,1.48495018,2550.6,2550.4,1.48497018]
[1729738172819,1.48495018,2550.6,2550.4,1.13175018]
[1729738173019,1.48495018,2550.6,2550.5,0.3532]
[1729738173223,1.48495018,2550.6,2550.5,1.48495018]
[1729738173423,5.67286581,2550.6,2550.5,1.48495018]
[1729738173619,5.67286581,2550.6,2550.5,1.13175018]
[1729738174016,5.31966581,2550.6,2550.5,1.48495018]
[1729738174225,1.13175018,2550.7,2550.5,1.13175018]
[1729738174415,1.13175018,2550.7,2550.6,0.78519]
[1729738174722,1.48492018,2550.7,2550.6,0.78519]
[1729738175112,1.13175018,2550.7,2550.6,0.432]
[1729738175517,1.13175018,2550.7,2550.6,1.18779]
[1729738177526,1.13175018,2550.7,2550.6,0.78519]
[1729738180821,1.56455018,2550.8,2550.6,1.56375018]
[1729738181025,1.56455018,2550.8,2550.7,0.77037]
[1729738181824,0.35313,2551.1,2550.8,0.35315]
[1729738182019,40.8,2551.2,2550.8,0.35315]
[1729738182020,1.13175018,2550.9,2550.8,0.35315]
[1729738182223,5.521118,2550.9,2550.8,0.35315]
[1729738182431,1.13175018,2550.9,2550.8,0.35315]
[1729738182830,5.521118,2550.9,2550.8,0.35315]
[1729738186639,4.38936782,2550.9,2550.8,0.35315]
[1729738186842,4.38936782,2550.9,2550.8,1.92220018]
[1729738188738,4.38936782,2550.9,2550.8,0.79045]
[1729738189643,4.38936782,2550.9,2550.8,1.92220018]
[1729738191229,1.89556018,2551.2,2551.0,0.35313]
[1729738191445,1.89556018,2551.2,2551.0,1.48488018]
[1729738191643,5.40909643,2551.1,2551.0,1.48488018]
[1729738193246,4.33955018,2551.3,2551.0,1.13175018]
[1729738193451,4.33955018,2551.3,2551.2,0.35311]
[1729738193949,4.33955018,2551.3,2551.2,0.77851]
[1729738194145,4.33955018,2551.3,2551.2,0.4254]
[1729738195141,4.69264018,2551.3,2551.2,0.4254]
[1729738198848,1.48484018,2551.3,2551.2,0.4254]
[1729738201649,1.48484018,2551.3,2551.2,0.77851]
[1729738201650,1.13175018,2551.3,2551.2,0.77851]
[1729738201844,1.13175018,2551.3,2551.2,0.4254]
[1729738202047,1.13175018,2551.3,2551.2,0.77851]
[1729738202252,1.13175018,2551.3,2551.2,0.4254]
[1729738202654,1.57065018,2551.4,2551.2,1.55715018]
[1729738203045,4.38794098,2551.3,2551.2,1.91025018]
[1729738204068,0.4389,2551.4,2551.3,0.35309]
[1729738204265,0.4389,2551.4,2551.3,1.48484018]
[1729738204969,3.2078,2551.5,2551.4,0.35308]
[1729738205167,3.2078,2551.5,2551.4,1.48483018]
[1729738206865,0.4212,2551.6,2551.5,0.35306]
[1729738207064,0.4212,2551.6,2551.5,0.78126]
[1729738207363,0.4212,2551.6,2551.5,1.91301018]
[1729738208467,1.13175018,2551.7,2551.5,1.55995018]
[1729738208665,1.13175018,2551.7,2551.6,1.92200018]
[1729738208870,1.13175018,2551.7,2551.6,2.35600018]
[1729738210563,0.3998,2551.9,2551.6,2.00295018]
[1729738210761,1.88457018,2551.9,2551.7,0.35303]
[1729738210961,5.47985084,2551.8,2551.7,0.35303]
[1729738211964,5.47985084,2551.8,2551.6,2.00295018]
[1729738212164,5.47985084,2551.8,2551.7,0.35304]
[1729738213064,5.47985084,2551.8,2551.6,2.35599018]
[1729738213265,5.47985084,2551.8,2551.7,0.35304]
[1729738214970,5.47985084,2551.8,2551.7,1.48479018]
[1729738216272,4.34810066,2551.8,2551.7,1.48479018]
[1729738217175,3.2078,2552.0,2551.9,0.35301]
[1729738217471,3.2078,2552.0,2551.9,1.48476018]
[1729738217773,41.56387,2552.2,2551.9,1.48475018]
[1729738217984,42.69562018,2552.2,2552.0,1.18659]
[1729738218274,46.92932568,2552.2,2552.0,0.8336]
[1729738218772,1.13175018,2552.1,2552.0,0.8336]
[1729738219179,5.22997232,2552.1,2552.0,0.8336]
[1729738219381,5.22997232,2552.1,2552.0,1.18659]
[1729738219970,4.09822214,2552.1,2552.0,2.31834018]
[1729738221178,41.2109,2552.2,2552.1,0.35298]
[1729738221372,41.2109,2552.2,2552.1,1.48473018]
[1729738221680,0.4109,2552.2,2552.1,1.88953018]
[1729738225081,44.36072,2552.6,2552.1,1.53655018]
[1729738225279,0.82502929,2552.5,2552.4,1.13175018]
[1729738225583,4.77929342,2552.5,2552.4,1.48469018]
[1729738226084,4.77929182,2552.5,2552.4,1.48469018]
[1729738226585,3.2078,2552.6,2552.4,1.13175018]
[1729738226880,3.2078,2552.6,2552.1,1.28724]
[1729738226881,3.2078,2552.6,2552.5,2.30158018]
[1729738227288,0.4273,2552.7,2552.6,0.35291]
[1729738227589,0.49059227,2552.7,2552.6,1.48466018]
[1729738227883,0.49059227,2552.7,2552.6,1.90976018]
[1729738228588,0.06329227,2552.7,2552.6,1.90976018]
[1729738228890,0.06329227,2552.8,2552.6,1.55685018]
[1729738229078,3.6351,2552.9,2552.7,1.13175018]
[1729738229383,3.6351,2552.9,2552.8,1.48463018]
[1729738229778,3.2078,2552.9,2552.8,2.61638036]
[1729738229974,3.2078,2552.9,2552.8,1.48463018]
[1729738230381,0.77133,2553.2,2552.8,1.13175018]
[1729738230586,0.77133,2553.2,2553.1,1.13175018]
[1729738230888,0.77133,2553.2,2553.0,1.13175018]
[1729738230889,1.55025018,2553.2,2553.0,1.13175018]
[1729738231087,0.35285,2553.1,2553.0,1.13175018]
[1729738231587,4.78597342,2553.1,2553.0,1.13175018]
[1729738231791,0.4185,2553.2,2553.0,1.48461018]
[1729738231986,0.4185,2553.2,2553.1,1.48459018]
[1729738232483,3.2078,2553.3,2553.2,0.35283]
[1729738232784,3.2078,2553.3,2553.2,1.48458018]
[1729738233186,3.2078,2553.3,2553.2,1.13175018]
[1729738233675,3.2078,2553.3,2553.2,1.48458018]
[1729738233985,0.4071,2553.4,2553.2,1.13175018]
[1729738234185,0.4071,2553.4,2553.3,1.98315018]
[1729738234391,0.4071,2553.4,2553.3,2.33596018]
[1729738235178,0.4071,2553.6,2553.3,1.98315018]
[1729738235385,0.4071,2553.6,2553.5,1.48454018]
[1729738235789,4.10964895,2553.7,2553.5,1.48454018]
[1729738235987,4.10964895,2553.7,2553.4,0.3969]
[1729738235988,4.10964895,2553.7,2553.6,1.48452018]
[1729738236188,4.10964895,2553.7,2553.6,1.13175018]
[1729738236379,0.3977,2553.8,2553.6,1.48452018]
[1729738236585,0.75045,2553.8,2553.7,1.56515018]
[1729738237299,1.52945018,2553.8,2553.5,1.13175018]
[1729738237494,1.13175018,2553.7,2553.5,1.56515018]
[1729738237687,0.35276,2553.7,2553.6,1.13175018]
[1729738238491,0.35277,2553.6,2553.5,1.56515018]
[1729738238688,0.35279,2553.5,2553.4,1.13175018]
[1729738243394,1.13175018,2553.7,2553.4,1.13175018]
[1729738243688,1.13175018,2553.7,2553.5,1.13175018]
[1729738243689,4.58662424,2553.6,2553.5,1.13175018]
[1729738246297,4.23384424,2553.6,2553.5,1.48454018]
[1729738246692,4.61891228,2553.7,2553.5,1.48454018]
[1729738246993,4.61891228,2553.7,2553.6,1.13175018]
[1729738246994,0.35277,2553.7,2553.6,1.13175018]
[1729738248394,5.49501018,2553.8,2553.6,1.13175018]
[1729738248794,4.26253329,2553.7,2553.6,1.48452018]
[1729738249200,4.61529329,2553.7,2553.5,0.35278]
[1729738249393,4.26253329,2553.7,2553.6,1.48452018]
[1729738249594,0.3977,2553.8,2553.7,0.35276]
[1729738249800,0.3977,2553.8,2553.7,1.91971018]
[1729738251291,0.3977,2553.8,2553.7,1.56695018]
[1729738253000,0.3977,2553.8,2553.7,0.4352]
[1729738253202,0.3977,2553.8,2553.4,0.78049]
[1729738253203,6.45193419,2553.8,2553.4,0.78049]
[1729738253509,6.45193419,2553.8,2553.5,0.35279]
[1729738253510,0.35277,2553.7,2553.5,0.35279]
[1729738253803,0.35277,2553.7,2553.6,1.13175018]
[1729738254198,4.24735494,2553.7,2553.5,1.13175018]
[1729738254400,0.35278,2553.6,2553.5,1.13175018]
[1729738258506,0.35278,2553.6,2553.5,1.48454018]
[1729738258706,4.24735494,2553.7,2553.5,1.13175018]
[1729738258904,4.24735494,2553.7,2553.6,1.13175018]
[1729738258905,4.60012494,2553.7,2553.6,1.13175018]
[1729738260111,4.24735494,2553.7,2553.6,1.13175018]
[1729738260411,4.60011494,2553.7,2553.6,1.13175018]
[1729738261604,4.24735494,2553.7,2553.6,1.13175018]
[1729738261909,4.60011494,2553.7,2553.6,1.13175018]
[1729738262306,4.24735494,2553.7,2553.6,1.13175018]
[1729738262515,4.24735494,2553.7,2553.6,1.48452018]
[1729738262706,44.4057,2554.2,2553.6,2.26350036]
[1729738262906,0.76072,2554.0,2553.8,0.35274]
[1729738263203,4.92317086,2554.0,2553.9,0.4307]
[1729738263409,0.76072,2554.0,2553.9,0.4307]
[1729738263611,4.93842118,2554.0,2553.9,0.4307]
[1729738264312,4.93842118,2554.0,2553.9,1.56245018]
[1729738271826,4.93842118,2554.0,2553.9,0.4307]
[1729738272709,9.63265136,2554.0,2553.5,0.4313]
[1729738272915,0.35277,2553.7,2553.6,1.13175018]
[1729738273421,4.53527248,2553.7,2553.6,1.13175018]
[1729738276223,4.53527248,2553.7,2553.4,0.8581]
[1729738276224,0.35279,2553.5,2553.4,0.8581]
[1729738276421,0.35279,2553.5,2553.4,1.98985018]
[1729738279227,4.86280645,2553.5,2553.4,1.98985018]
[1729738279621,4.86280645,2553.5,2553.4,0.4382]
[1729738279821,0.88201,2553.4,2552.5,3.2078]
[1729738280017,0.3529,2552.7,2552.6,1.13175018]
[1729738280425,4.83770787,2552.7,2552.6,1.13175018]
[1729738280628,4.48480787,2552.7,2552.6,1.13175018]
[1729738280822,4.48480787,2552.7,2552.6,1.48466018]
[1729738281017,4.83769787,2552.8,2552.6,1.48466018]
[1729738281225,4.83769787,2552.8,2552.7,1.13175018]
[1729738281523,4.80702367,2552.8,2552.7,1.13175018]
[1729738281728,4.80702367,2552.8,2552.6,1.13175018]
[1729738281729,5.58588385,2552.8,2552.6,1.13175018]
[1729738282028,0.35291,2552.6,2552.5,4.73755018]
[1729738282532,5.40226018,2552.6,2552.5,0.398]
[1729738282728,12.40963749,2552.6,2552.2,1.56995018]
[1729738282931,1.48470018,2552.3,2552.2,0.3968]
[1729738283228,6.01225783,2552.3,2552.2,0.3968]
[1729738283531,4.52755765,2552.3,2552.2,1.52855018]
[1729738283729,4.52755765,2552.3,2552.2,1.88152018]
[1729738283920,0.4386,2552.7,2552.2,9.00772018]
[1729738284228,0.4386,2552.7,2552.6,0.35291]
[1729738284626,4.96766066,2552.7,2552.6,0.35291]
[1729738285020,4.52906066,2552.7,2552.6,0.35291]
[1729738285426,4.42990181,2552.8,2552.4,2.44939655]
[1729738285624,3.2078,2552.9,2552.8,0.35288]
[1729738286430,3.2078,2552.9,2552.8,6.71907655]
[1729738287032,3.2078,2552.9,2552.8,7.55707655]
[1729738287225,3.2078,2552.9,2552.8,1.19088]
[1729738288528,3.98865,2553.1,2552.9,0.35287]
[1729738288732,3.6358,2553.1,2552.9,0.35287]
[1729738289337,3.98865,2553.1,2552.9,0.35287]
[1729738290533,3.2078,2553.4,2552.9,2.44939655]
[1729738290831,4.19758303,2553.3,2552.9,2.44939655]
[1729738291027,4.19758303,2553.3,2553.1,0.35283]
[1729738291543,4.19758303,2553.3,2553.2,0.4205]
[1729738292126,4.19758303,2553.3,2553.2,0.8584]
[1729738292334,4.19758303,2553.3,2553.2,1.21123]
[1729738294039,4.55039303,2553.3,2553.2,0.8584]
[1729738294940,4.55039303,2553.3,2553.2,0.4205]
[1729738297140,4.55039303,2553.3,2553.0,0.4304]
[1729738297141,4.19758303,2553.3,2553.0,0.78325]
[1729738297345,4.19758303,2553.3,2553.0,1.19225]
[1729738297346,0.35284,2553.2,2553.0,1.19225]
[1729738298541,4.19758303,2553.3,2553.0,1.19225]
[1729738298739,0.35284,2553.2,2553.0,1.19225]
[1729738298942,4.19758303,2553.3,2553.0,0.8394]
[1729738299143,0.35284,2553.2,2553.0,1.19225]
[1729738299347,0.35284,2553.2,2553.1,0.35284]
[1729738299852,0.35285,2553.1,2552.9,0.35286]
[1729738300039,0.4354,2553.2,2552.8,3.6238]
[1729738300239,0.4354,2553.2,2553.0,0.35284]
[1729738300240,0.35283,2553.2,2553.0,0.35284]
[1729738300444,0.35283,2553.2,2553.1,0.4026]
[1729738300646,4.0822,2553.4,2552.9,0.35286]
[1729738300849,0.75705,2553.1,2552.9,0.74936]
[1729738301843,0.4042,2553.1,2553.0,0.35286]
[1729738302049,0.75705,2553.1,2552.9,0.3965]
[1729738302942,0.4042,2553.1,2552.9,0.3965]
[1729738303143,0.4042,2553.1,2553.0,0.35286]
[1729738304246,0.4042,2553.1,2553.0,1.48311759]
[1729738304647,0.75704,2553.1,2553.0,1.48311759]
[1729738304840,0.4042,2553.1,2553.0,1.48311759]
[1729738305842,0.75704,2553.1,2553.0,1.13025759]
[1729738306042,0.75704,2553.1,2553.0,1.48311759]
[1729738306245,0.4042,2553.1,2553.0,1.48311759]
[1729738307548,0.75704,2553.1,2553.0,1.13025759]
[1729738308941,0.4042,2553.1,2553.0,1.48311759]
[1729738310854,0.75704,2553.1,2553.0,1.48311759]
[1729738311650,0.4042,2553.1,2553.0,1.48311759]
[1729738312653,0.4042,2553.1,2552.9,0.35286]
[1729738312855,0.35286,2553.0,2552.9,1.48311759]
[1729738313152,0.4042,2553.1,2552.9,1.48311759]
[1729738313357,0.75705,2553.1,2553.0,0.35286]
[1729738313555,0.35286,2553.0,2552.9,1.13025759]
[1729738313853,0.4039,2553.0,2552.9,1.48312759]
[1729738314054,0.75676,2553.0,2552.9,1.48312759]
[1729738314251,0.4039,2553.0,2552.9,1.13025759]
[1729738314448,9.62382884,2553.0,2552.7,3.2078]
[1729738314756,9.62382884,2553.0,2552.6,1.13025759]
[1729738314757,0.3529,2552.7,2552.6,1.48316759]
[1729738314948,1.13025759,2552.8,2552.6,1.48316759]
[1729738315148,0.4276,2552.7,2552.6,1.48316759]
[1729738315349,4.69061002,2552.7,2552.6,1.48316759]
[1729738316556,5.04351002,2552.7,2552.6,1.13025759]
[1729738316758,5.04351002,2552.7,2552.6,1.48316759]
[1729738317161,4.69061002,2552.7,2552.6,1.48316759]
[1729738320058,1.89400759,2553.1,2553.0,0.35286]
[1729738320256,2.30330759,2553.1,2553.0,1.48311759]
[1729738320458,5.11889778,2553.1,2553.0,1.48311759]
[1729738320659,3.2078,2553.5,2553.1,0.35284]
[1729738320660,1.13025759,2553.3,2553.1,0.35284]
[1729738320854,1.13025759,2553.2,2553.1,1.89639759]
[1729738321357,1.48308759,2553.2,2553.1,1.54355759]
[1729738322161,1.13025759,2553.2,2553.1,1.89639759]
[1729738322461,1.48308759,2553.2,2553.1,1.54355759]
[1729738324061,1.13025759,2553.2,2553.1,1.54355759]
[1729738324459,1.13025759,2553.2,2553.1,1.89639759]
[1729738327164,1.48307759,2553.3,2553.1,1.89639759]
[1729738328059,1.48308759,2553.2,2553.1,0.4133]
[1729738328267,1.13025759,2553.2,2553.1,0.76614]
[1729738328457,4.12231616,2553.3,2553.2,0.35283]